bitfinex-derivatives/quotes_BTCF0:USTF0_20240923
["timestamp","ask_amount","ask_price","bid_price","bid_amount"]
[1727126055493,0.194851,63407.0,63406.0,0.15415395]
[1727126055692,0.555651,63407.0,63406.0,0.002]
[1727126055997,0.555651,63407.0,63403.0,0.0037]
[1727126055998,0.078855,63404.0,63403.0,0.0037]
[1727126056199,0.078857,63402.0,63401.0,0.07873992]
[1727126057511,0.078857,63402.0,63401.0,0.001]
[1727126058798,0.080857,63402.0,63401.0,0.002]
[1727126060302,0.1754623,63402.0,63401.0,0.002]
[1727126060604,0.20102983,63402.0,63401.0,0.002]
[1727126061505,0.2010298,63402.0,63401.0,0.002]
[1727126061901,0.1064245,63402.0,63401.0,0.002]
[1727126064509,0.12551371,63402.0,63401.0,0.002]
[1727126065407,0.09994621,63402.0,63401.0,0.002]
[1727126065601,0.12551369,63402.0,63401.0,0.002]
[1727126068407,0.09994621,63402.0,63401.0,0.002]
[1727126081517,0.078859,63401.0,63400.0,0.00308]
[1727126081819,0.157718,63401.0,63400.0,0.00308]
[1727126082515,0.158718,63401.0,63400.0,0.00408]
[1727126082715,0.18428693,63401.0,63400.0,0.00408]
[1727126083327,0.158718,63401.0,63400.0,0.06703518]
[1727126084419,0.161718,63401.0,63400.0,0.06808495]
[1727126085415,0.161718,63401.0,63400.0,0.00508]
[1727126093425,0.161718,63401.0,63400.0,0.06808401]
[1727126093828,0.161718,63401.0,63400.0,0.00508]
[1727126093829,0.082859,63401.0,63400.0,0.00508]
[1727126097628,0.10842659,63401.0,63400.0,0.00508]
[1727126100238,0.10842659,63401.0,63400.0,0.11508]
[1727126101533,0.10842659,63401.0,63400.0,0.19086]
[1727126103632,0.10842649,63401.0,63400.0,0.19086]
[1727126104135,0.161718,63401.0,63400.0,0.002]
[1727126104329,0.1872855,63401.0,63400.0,0.002]
[1727126105739,0.161718,63401.0,63400.0,0.08073992]
[1727126106630,0.161718,63401.0,63400.0,0.002]
[1727126110127,0.522518,63401.0,63400.0,0.002]
[1727126110437,0.161718,63401.0,63400.0,0.002]
[1727126110675,0.522518,63401.0,63400.0,0.002]
[1727126111142,1.674577,63401.0,63400.0,0.04927582]
[1727126111340,0.236592,63397.0,63396.0,0.06672479]
[1727126111539,0.236595,63396.0,63395.0,0.06302479]
[1727126111739,0.157732,63395.0,63394.0,0.06672479]
[1727126111946,0.314132,63395.0,63393.0,0.06302479]
[1727126112254,0.157738,63393.0,63392.0,0.06302479]
[1727126112544,0.078871,63391.0,63390.0,0.0037]
[1727126112753,0.078871,63391.0,63389.0,0.42594479]
[1727126112932,0.078871,63391.0,63389.0,0.42382479]
[1727126113243,0.157744,63390.0,63389.0,0.3608]
[1727126114842,0.163744,63390.0,63389.0,0.3608]
[1727126115142,0.078874,63389.0,63388.0,0.06302479]
[1727126115338,0.078874,63389.0,63388.0,0.08768668]
[1727126115543,0.078874,63389.0,63388.0,0.02466189]
[1727126116132,0.078874,63389.0,63388.0,0.08768668]
[1727126116333,0.078874,63389.0,63388.0,0.02466189]
[1727126116545,0.078875,63388.0,63387.0,0.17302479]
[1727126116747,0.078875,63388.0,63387.0,0.19768668]
[1727126117746,0.079875,63388.0,63387.0,0.19768668]
[1727126119541,0.079875,63388.0,63387.0,0.13466189]
[1727126120748,0.079875,63388.0,63387.0,0.11]
[1727126120938,0.079875,63388.0,63387.0,0.13466186]
[1727126122037,0.079875,63388.0,63387.0,0.11]
[1727126122249,0.079875,63388.0,63387.0,0.13466186]
[1727126123747,0.079875,63388.0,63387.0,0.11]
[1727126123950,0.079875,63388.0,63387.0,0.13466186]
[1727126125635,0.236628,63387.0,63386.0,0.42377164]
[1727126125834,0.236628,63387.0,63383.0,0.0037]
[1727126125835,0.15776,63384.0,63383.0,0.0037]
[1727126126035,0.078884,63381.0,63380.0,0.06297164]
[1727126126237,0.078881,63383.0,63379.0,0.11]
[1727126126542,0.127981,63383.0,63379.0,0.17297164]
[1727126126844,0.078885,63380.0,63379.0,0.11]
[1727126127043,0.077885,63380.0,63379.0,0.11]
[1727126127244,0.078887,63378.0,63377.0,0.06297164]
[1727126127433,0.078887,63378.0,63373.0,0.08243992]
[1727126127434,0.078891,63375.0,63374.0,0.06297164]
[1727126127636,0.078891,63375.0,63371.0,0.11]
[1727126128650,0.078895,63372.0,63371.0,0.188896]
[1727126129755,0.081895,63372.0,63371.0,0.188896]
[1727126130545,0.084895,63372.0,63371.0,0.188896]
[1727126131250,0.084895,63372.0,63371.0,0.11]
[1727126135148,0.1035058,63372.0,63371.0,0.11]
[1727126138338,0.1035058,63372.0,63371.0,0.188896]
[1727126138850,0.1035058,63372.0,63371.0,0.11]
[1727126145658,0.1035058,63372.0,63371.0,0.188896]
[1727126149359,0.1035058,63372.0,63371.0,0.078896]
[1727126149557,0.1035058,63372.0,63371.0,0.188896]
[1727126150251,0.1035058,63372.0,63371.0,0.25186764]
[1727126151254,0.1035058,63372.0,63371.0,0.25187795]
[1727126151556,0.1035058,63372.0,63371.0,0.188896]
[1727126152153,0.1035058,63372.0,63371.0,0.14187795]
[1727126152354,0.1035058,63372.0,63371.0,0.188896]
[1727126154257,0.1035058,63372.0,63371.0,0.35652906]
[1727126155263,0.1035058,63372.0,63371.0,0.27778914]
[1727126157367,0.1035058,63372.0,63371.0,0.37238884]
[1727126160461,0.1035058,63372.0,63371.0,0.37251438]
[1727126161264,0.084895,63372.0,63371.0,0.27791468]
[1727126161457,0.084895,63372.0,63371.0,0.38389028]
[1727126162476,0.084895,63372.0,63371.0,0.27791468]
[1727126162670,0.084895,63372.0,63371.0,0.383917]
[1727126163271,0.084895,63372.0,63371.0,0.27791468]
[1727126164471,0.084895,63372.0,63371.0,0.37261417]
[1727126164772,0.084895,63372.0,63371.0,0.27791468]
[1727126165159,0.084895,63372.0,63371.0,0.30258269]
[1727126166562,0.084895,63372.0,63371.0,0.39727744]
[1727126166963,0.084895,63372.0,63371.0,0.27791468]
[1727126167378,0.084895,63372.0,63371.0,0.3025835]
[1727126168465,0.63459,63372.0,63371.0,0.1136875]
[1727126168671,0.5252,63372.0,63369.0,0.0789223]
[1727126168973,0.157796,63369.0,63368.0,0.0789223]
[1727126169163,0.267796,63369.0,63368.0,0.16819451]
[1727126169363,0.267796,63369.0,63368.0,0.0789223]
[1727126169565,0.188898,63369.0,63366.0,0.0789223]
[1727126169774,0.078901,63367.0,63366.0,0.0789223]
[1727126169975,0.078902,63366.0,63365.0,0.0789223]
[1727126170278,0.599502,63366.0,63365.0,0.16824034]
[1727126170466,0.599502,63366.0,63363.0,0.0789223]
[1727126170668,0.076905,63364.0,63363.0,0.0789223]
[1727126170979,0.078906,63363.0,63362.0,0.0789223]
[1727126171168,0.078906,63363.0,63362.0,0.16837215]
[1727126171677,0.599502,63366.0,63361.0,0.1577512]
[1727126171678,0.076907,63362.0,63361.0,0.1577512]
[1727126171980,0.076907,63362.0,63361.0,0.16834917]
[1727126172373,0.067907,63362.0,63361.0,0.16834917]
[1727126172582,0.067907,63362.0,63361.0,0.24717514]
[1727126172778,0.067907,63362.0,63361.0,0.31132365]
[1727126172988,0.067907,63362.0,63361.0,0.27984764]
[1727126173176,0.067907,63362.0,63361.0,0.26217364]
[1727126173484,0.067907,63362.0,63361.0,0.26207939]
[1727126173680,0.067907,63362.0,63361.0,0.23688134]
[1727126174070,0.067907,63362.0,63361.0,0.28674812]
[1727126174469,0.067907,63362.0,63361.0,0.11858064]
[1727126174676,0.067907,63362.0,63361.0,0.17273247]
[1727126174882,0.067907,63362.0,63361.0,0.23688115]
[1727126175087,0.067907,63362.0,63361.0,0.32620681]
[1727126176082,0.067907,63362.0,63361.0,0.34688115]
[1727126176586,0.067907,63362.0,63361.0,0.26805668]
[1727126177082,0.067907,63362.0,63361.0,0.203908]
[1727126179580,0.067907,63362.0,63361.0,0.093908]
[1727126179887,0.067907,63362.0,63361.0,0.203908]
[1727126180077,0.067907,63362.0,63361.0,0.11858028]
[1727126180275,0.067907,63362.0,63361.0,0.22858028]
[1727126185975,0.067907,63362.0,63361.0,0.203908]
[1727126186177,0.067907,63362.0,63361.0,0.22858029]
[1727126186376,0.067907,63362.0,63361.0,0.203908]
[1727126186579,0.067907,63362.0,63361.0,0.22858048]
[1727126189198,0.067907,63362.0,63361.0,0.203908]
[1727126189490,0.067907,63362.0,63361.0,0.22858036]
[1727126192582,0.067907,63362.0,63361.0,0.203908]
[1727126192884,0.067907,63362.0,63361.0,0.2285803]
[1727126193593,0.067907,63362.0,63361.0,0.30740477]
[1727126194592,0.067907,63362.0,63361.0,0.39669094]
[1727126195689,0.067907,63362.0,63361.0,0.31786647]
[1727126196190,0.067907,63362.0,63361.0,0.29319417]
[1727126196391,0.067907,63362.0,63361.0,0.31786646]
[1727126197479,0.067907,63362.0,63361.0,0.41256121]
[1727126198486,0.067907,63362.0,63361.0,0.31786646]
[1727126200796,0.067907,63362.0,63361.0,0.31786611]
[1727126206305,0.078904,63365.0,63364.0,0.078904]
[1727126206605,0.078904,63365.0,63364.0,0.16819017]
[1727126207193,0.078904,63365.0,63364.0,0.16830928]
[1727126208508,0.078904,63365.0,63364.0,0.17130928]
[1727126209008,0.078904,63365.0,63364.0,0.17530928]
[1727126216218,0.078904,63365.0,63364.0,0.23945396]
[1727126216509,0.078904,63365.0,63364.0,0.33416877]
[1727126216731,0.078904,63365.0,63364.0,0.27002409]
[1727126216922,0.078904,63365.0,63364.0,0.33416848]
[1727126217223,0.078904,63365.0,63364.0,0.1999802]
[1727126217516,0.078904,63365.0,63364.0,0.23945412]
[1727126217823,0.078904,63365.0,63364.0,0.23945479]
[1727126218022,0.078904,63365.0,63364.0,0.3341696]
[1727126218828,0.078904,63365.0,63364.0,0.23945479]
[1727126219045,0.078904,63365.0,63364.0,0.3341696]
[1727126220233,0.078904,63365.0,63364.0,0.3528774]
[1727126220926,0.078904,63365.0,63364.0,0.33414551]
[1727126221723,0.078904,63365.0,63364.0,0.2394307]
[1727126222236,0.078904,63365.0,63364.0,0.33414551]
[1727126222626,0.078904,63365.0,63364.0,0.2394307]
[1727126224426,0.078904,63365.0,63364.0,0.33414551]
[1727126224618,0.078904,63365.0,63364.0,0.2394307]
[1727126225023,0.078904,63365.0,63364.0,0.33414551]
[1727126225729,0.078904,63365.0,63364.0,0.2394307]
[1727126225938,0.078904,63365.0,63364.0,0.17528519]
[1727126226134,0.078904,63365.0,63364.0,0.33414523]
[1727126226323,0.078904,63365.0,63364.0,0.33414435]
[1727126227834,0.078904,63365.0,63364.0,0.23942954]
[1727126228140,0.078904,63365.0,63364.0,0.23942987]
[1727126230138,0.078904,63365.0,63364.0,0.23942278]
[1727126236041,0.078904,63365.0,63364.0,0.1752781]
[1727126236341,0.078904,63365.0,63364.0,0.2394238]
[1727126236539,0.078904,63365.0,63364.0,0.23942332]
[1727126237131,0.078904,63365.0,63364.0,0.1752781]
[1727126237740,0.078904,63365.0,63364.0,0.19994952]
[1727126237946,0.078904,63365.0,63364.0,0.2394238]
[1727126241439,0.078904,63365.0,63364.0,0.1605198]
[1727126242636,0.078904,63365.0,63364.0,0.0963741]
[1727126243435,0.188904,63365.0,63364.0,0.0963741]
[1727126245540,0.078904,63365.0,63364.0,0.0963741]
[1727126246047,0.078904,63365.0,63364.0,0.09630658]
[1727126249341,0.078904,63365.0,63364.0,0.0963543]
[1727126250251,0.157808,63365.0,63364.0,0.0963543]
[1727126250447,0.157808,63365.0,63364.0,0.17527362]
[1727126251547,0.157808,63365.0,63364.0,0.08591932]
[1727126251768,0.157808,63365.0,63364.0,0.007]
[1727126263762,0.157808,63365.0,63364.0,0.07011709]
[1727126263965,0.157808,63365.0,63364.0,0.06611709]
[1727126264150,0.157808,63365.0,63364.0,0.06711709]
[1727126264354,0.157808,63365.0,63364.0,0.06411709]
[1727126264759,0.157808,63365.0,63364.0,0.001]
[1727126270760,0.236733,63359.0,63358.0,0.0037]
[1727126270960,0.078916,63355.0,63354.0,0.0037]
[1727126271270,0.11,63360.0,63349.0,0.188923]
[1727126271469,0.078922,63350.0,63349.0,0.11]
[1727126271670,0.078922,63350.0,63349.0,0.26338388]
[1727126272160,0.078922,63350.0,63349.0,0.17415929]
[1727126272362,0.078922,63350.0,63349.0,0.22391195]
[1727126272555,0.078922,63350.0,63349.0,0.13467665]
[1727126272767,0.061922,63350.0,63349.0,0.13467665]
[1727126273068,0.061922,63350.0,63349.0,0.1593542]
[1727126273369,0.061922,63350.0,63349.0,0.1623542]
[1727126273560,0.061922,63350.0,63349.0,0.1643542]
[1727126274167,0.061922,63350.0,63349.0,0.0543542]
[1727126274865,0.061922,63350.0,63349.0,0.0296771]
[1727126274866,0.08096398,63350.0,63349.0,0.0296771]
[1727126275669,0.08096398,63350.0,63349.0,0.0266771]
[1727126275874,0.15988598,63350.0,63349.0,0.0286771]
[1727126276265,0.16188598,63350.0,63349.0,0.0266771]
[1727126276770,0.27188598,63350.0,63349.0,0.0266771]
[1727126277269,0.27488598,63350.0,63349.0,0.0246771]
[1727126277471,0.28488598,63350.0,63349.0,0.0246771]
[1727126278071,0.28488598,63350.0,63340.0,0.34198052]
[1727126278381,0.28488598,63350.0,63303.0,0.06299506]
[1727126278382,0.23829224,63326.0,63303.0,0.06299506]
[1727126278560,0.23829224,63326.0,63304.0,0.00212]
[1727126278561,0.3608,63310.0,63304.0,0.00212]
[1727126278757,0.3608,63310.0,63231.0,0.20480326]
[1727126278758,0.24966389,63245.0,63224.0,0.10782575]
[1727126278975,0.12,63304.0,63224.0,0.10782575]
[1727126278976,0.920678,63225.0,63224.0,0.00880262]
[1727126279161,0.920678,63225.0,63192.0,0.39717372]
[1727126279162,0.079093,63213.0,63195.0,0.0469818]
[1727126279360,0.079093,63213.0,63192.0,0.39717372]
[1727126279361,0.3608,63200.0,63192.0,0.3948]
[1727126279771,0.3608,63200.0,63199.0,0.30273111]
[1727126281968,0.3618,63200.0,63199.0,0.30273111]
[1727126282563,0.3608,63200.0,63199.0,0.29273111]
[1727126282770,0.3608,63210.0,63199.0,0.6]
[1727126283071,0.3608,63216.0,63209.0,0.18]
[1727126283271,0.3608,63216.0,63203.0,0.18]
[1727126283466,0.3608,63216.0,63199.0,0.18]
[1727126283667,0.3608,63203.0,63195.0,0.3608]
[1727126283864,0.3608,63203.0,63195.0,0.5408]
[1727126284065,0.3608,63203.0,63202.0,0.18]
[1727126284681,0.3608,63203.0,63197.0,0.18]
[1727126285067,0.3608,63203.0,63193.0,1.07092]
[1727126285068,0.439906,63203.0,63193.0,1.07092]
[1727126285271,0.439906,63203.0,63193.0,1.07]
[1727126285670,0.439906,63203.0,63198.0,0.18]
[1727126285871,0.439906,63203.0,63193.0,1.07]
[1727126285872,0.439906,63203.0,63193.0,1.07092]
[1727126286075,0.439906,63203.0,63193.0,1.07]
[1727126286377,0.443606,63203.0,63194.0,0.0037]
[1727126288066,0.443606,63203.0,63195.0,0.3608]
[1727126288267,0.443606,63203.0,63194.0,0.0037]
[1727126288474,0.443606,63203.0,63195.0,0.5408]
[1727126289178,0.443606,63203.0,63195.0,0.53914943]
[1727126289374,0.443606,63203.0,63195.0,0.35914943]
[1727126289570,0.443606,63203.0,63194.0,0.1837]
[1727126289773,0.443606,63203.0,63194.0,0.0037]
[1727126290079,0.3645,63203.0,63194.0,0.0037]
[1727126290677,0.3645,63203.0,63193.0,1.07084]
[1727126290678,0.3608,63203.0,63193.0,0.18084]
[1727126290881,0.0037,63206.0,63202.0,0.18]
[1727126291076,0.3616,63210.0,63202.0,0.18]
[1727126291271,0.18,63207.0,63195.0,0.3608]
[1727126291667,0.00014471,63206.0,63196.0,1.0]
[1727126291877,0.00092,63218.0,63181.0,0.3608]
[1727126291878,0.5408,63197.0,63181.0,0.3608]
[1727126292079,0.3608,63197.0,63184.0,0.18]
[1727126292379,0.3608,63190.0,63185.0,1.0]
[1727126293675,0.3608,63190.0,63182.0,0.18]
[1727126294275,0.07911,63200.0,63189.0,0.18]
[1727126294479,0.07911,63200.0,63190.0,0.94]
[1727126295577,0.2859,63203.0,63199.0,0.18]
[1727126295780,0.2859,63203.0,63190.0,0.93944906]
[1727126295781,0.079089,63217.0,63200.0,0.3608]
[1727126295971,0.18,63219.0,63208.0,0.3608]
[1727126296372,0.18,63212.0,63192.0,0.3608]
[1727126296580,0.07911,63200.0,63192.0,0.3608]
[1727126296789,0.3608,63200.0,63192.0,0.3608]
[1727126296992,0.079114,63197.0,63192.0,0.3608]
[1727126297179,0.3608,63200.0,63192.0,0.3608]
[1727126298981,0.3608,63200.0,63190.0,0.94028906]
[1727126299289,0.3608,63200.0,63190.0,0.93944906]
[1727126299670,0.3608,63200.0,63192.0,0.079118]
[1727126301777,0.188,63217.0,63192.0,0.079118]
[1727126301778,0.008,63217.0,63206.0,0.079101]
[1727126301992,0.18,63221.0,63207.0,0.3608]
[1727126302178,0.18,63215.0,63207.0,0.3608]
[1727126302379,0.18,63215.0,63208.0,0.94]
[1727126302579,0.18,63209.0,63207.0,0.3608]
[1727126302888,0.079099,63208.0,63207.0,0.3608]
[1727126303586,0.079099,63208.0,63200.0,0.94084]
[1727126304085,0.079099,63208.0,63200.0,0.94]
[1727126305079,0.3608,63210.0,63200.0,0.94]
[1727126305080,0.18,63204.0,63200.0,0.94]
[1727126305691,0.079102,63206.0,63200.0,0.94]
[1727126305892,0.3608,63210.0,63200.0,0.94]
[1727126306081,0.079108,63201.0,63200.0,0.94]
[1727126306689,0.079114,63197.0,63194.0,0.3608]
[1727126306890,0.259114,63197.0,63194.0,0.3608]
[1727126307299,0.259114,63197.0,63194.0,1.3008]
[1727126307495,0.10610339,63196.0,63194.0,1.3008]
[1727126307787,0.16102117,63195.0,63194.0,1.3008]
[1727126307989,0.02582067,63195.0,63194.0,0.94]
[1727126308184,0.02564979,63195.0,63194.0,0.94]
[1727126308490,0.20041696,63195.0,63187.0,0.54164]
[1727126308791,0.32634148,63194.0,63191.0,0.07912]
[1727126309093,0.20062794,63193.0,63191.0,0.07912]
[1727126309388,0.20062794,63192.0,63191.0,0.07912]
[1727126309577,0.20062794,63192.0,63191.0,0.90912]
[1727126311287,0.20077655,63192.0,63191.0,0.90912]
[1727126311491,0.2008006,63192.0,63191.0,0.90912]
[1727126311692,0.20062794,63192.0,63191.0,0.90912]
[1727126312389,0.12571354,63195.0,63191.0,0.83]
[1727126312591,0.19663237,63194.0,63193.0,0.079117]
[1727126312790,0.32234591,63194.0,63193.0,0.079117]
[1727126313189,0.19663237,63194.0,63193.0,0.079117]
[1727126314782,0.37663237,63194.0,63193.0,0.079117]
[1727126314983,0.37663237,63194.0,63191.0,0.83092]
[1727126315185,0.19663237,63193.0,63192.0,0.079119]
[1727126315398,0.1047699,63193.0,63192.0,0.079119]
[1727126315788,0.10488853,63193.0,63192.0,0.079119]
[1727126315991,0.1047699,63193.0,63192.0,0.079119]
[1727126316389,0.10490397,63193.0,63192.0,0.079119]
[1727126316602,0.1047699,63193.0,63192.0,0.079119]
[1727126317103,0.158242,63191.0,63190.0,0.17654]
[1727126317395,0.158242,63191.0,63190.0,0.10254]
[1727126317396,0.47968065,63191.0,63190.0,0.10254]
[1727126317694,0.079129,63184.0,63183.0,0.0037]
[1727126317903,0.079129,63184.0,63180.0,0.3608]
[1727126317904,0.079133,63181.0,63180.0,0.3608]
[1727126318090,0.18915062,63181.0,63180.0,0.3608]
[1727126318290,0.07914,63176.0,63175.0,0.8308]
[1727126318611,0.07914,63176.0,63174.0,0.3608]
[1727126318898,0.02580873,63175.0,63174.0,0.3608]
[1727126319098,0.02565263,63175.0,63174.0,0.439942]
[1727126319311,0.02565263,63175.0,63174.0,0.3608]
[1727126319312,0.079141,63175.0,63174.0,0.3608]
[1727126319500,0.10479363,63175.0,63174.0,0.3608]
[1727126319802,0.83784852,63175.0,63174.0,0.3608]
[1727126320099,0.36296852,63175.0,63174.0,0.3608]
[1727126320303,0.83784852,63175.0,63174.0,0.3608]
[1727126321102,0.18296852,63175.0,63174.0,0.3608]
[1727126321499,0.18314118,63175.0,63174.0,0.3608]
[1727126321700,0.18302118,63175.0,63174.0,0.5846]
[1727126321999,0.18287892,63175.0,63174.0,0.5846]
[1727126322202,0.10373792,63175.0,63174.0,0.5846]
[1727126322398,0.02565667,63175.0,63174.0,0.5846]
[1727126323091,0.02565667,63175.0,63174.0,0.2238]
[1727126323292,0.10479767,63175.0,63174.0,0.2238]
[1727126324091,0.10479767,63175.0,63174.0,0.16837031]
[1727126324400,0.198838,63175.0,63174.0,0.12877768]
[1727126324590,0.198838,63175.0,63174.0,0.03377768]
[1727126324990,0.10479767,63175.0,63174.0,0.03377768]
[1727126325191,0.19901066,63175.0,63174.0,0.03377768]
[1727126325397,0.10479767,63175.0,63174.0,0.03377768]
[1727126325991,0.10496901,63175.0,63174.0,0.03377768]
[1727126326202,0.10479767,63175.0,63174.0,0.03377768]
[1727126326394,0.10479927,63175.0,63174.0,0.03377768]
[1727126328204,0.02565827,63175.0,63174.0,0.11291968]
[1727126328507,0.02565827,63176.0,63174.0,0.11291968]
[1727126328799,0.02565827,63175.0,63174.0,0.11291968]
[1727126329009,0.10479927,63175.0,63174.0,0.03377768]
[1727126330405,0.17995535,63175.0,63174.0,0.03377768]
[1727126330704,0.18012801,63175.0,63174.0,0.03377768]
[1727126330904,0.17996628,63175.0,63174.0,0.03377768]
[1727126331202,0.10082528,63175.0,63174.0,0.11291968]
[1727126331895,0.07516718,63175.0,63174.0,0.11291968]
[1727126333212,0.10085298,63177.0,63168.0,0.2362]
[1727126333408,0.09400451,63171.0,63168.0,0.2362]
[1727126333703,0.09400451,63172.0,63171.0,0.079146]
[1727126334094,0.09400451,63173.0,63172.0,0.079145]
[1727126334602,0.3608,63178.0,63177.0,0.079138]
[1727126334906,0.38645652,63178.0,63177.0,0.079138]
[1727126335313,0.46116037,63178.0,63177.0,0.079138]
[1727126335501,0.46116037,63178.0,63177.0,0.439938]
[1727126335502,0.02565652,63178.0,63177.0,0.439938]
[1727126336000,0.10966224,63189.0,63177.0,0.439938]
[1727126336001,0.11336224,63190.0,63185.0,0.079128]
[1727126336314,0.07841295,63187.0,63186.0,0.3608]
[1727126336604,0.07841295,63193.0,63191.0,0.079121]
[1727126336798,0.079117,63195.0,63191.0,0.079121]
[1727126336799,0.07841295,63192.0,63191.0,0.079121]
[1727126336999,0.07841295,63192.0,63191.0,0.909121]
[1727126337604,0.079117,63195.0,63191.0,0.909121]
[1727126339103,0.079119,63193.0,63191.0,0.83]
[1727126340613,0.3608,63197.0,63191.0,0.83]
[1727126340815,0.00017266,63196.0,63192.0,0.079119]
[1727126341025,0.439913,63197.0,63192.0,0.079119]
[1727126341209,0.3608,63197.0,63191.0,0.83]
[1727126341420,0.079119,63193.0,63191.0,0.83]
[1727126343306,0.158242,63191.0,63190.0,0.095]
[1727126343518,0.519042,63191.0,63190.0,0.095]
[1727126343714,1.173802,63191.0,63190.0,0.095]
[1727126345720,1.173802,63191.0,63190.0,0.0395778]
[1727126345923,1.18887098,63191.0,63190.0,0.0395778]
[1727126346311,1.18901059,63191.0,63190.0,0.0395778]
[1727126346523,1.18901127,63191.0,63190.0,0.0395778]
[1727126346727,1.18887098,63191.0,63190.0,0.0791778]
[1727126346903,0.71411098,63191.0,63190.0,0.0791778]
[1727126347102,1.78887098,63191.0,63190.0,0.0791778]
[1727126347307,0.079146,63171.0,63168.0,0.01]
[1727126347509,1.52242736,63191.0,63168.0,0.01]
[1727126347510,0.079145,63172.0,63168.0,0.01]
[1727126347704,0.079146,63171.0,63168.0,0.01]
[1727126348313,0.079147,63170.0,63168.0,0.01]
[1727126348804,0.3608,63177.0,63168.0,0.01]
[1727126349808,0.3608,63169.0,63168.0,0.01]
[1727126350618,0.079147,63170.0,63168.0,0.01]
[1727126350811,0.079148,63169.0,63168.0,0.01]
[1727126352320,0.079143,63174.0,63168.0,0.01]
[1727126352621,0.3608,63177.0,63168.0,0.01]
[1727126352817,0.439939,63177.0,63169.0,0.079148]
[1727126353217,0.07914,63176.0,63169.0,0.079148]
[1727126353722,0.00017266,63175.0,63169.0,0.079148]
[1727126353945,0.079143,63174.0,63168.0,0.01]
[1727126354728,0.0001126,63173.0,63168.0,0.01]
[1727126354929,0.079143,63174.0,63168.0,0.01]
[1727126355219,0.079146,63172.0,63168.0,0.01]
[1727126356433,0.079146,63171.0,63168.0,0.01]
[1727126357634,0.18,63170.0,63168.0,0.01]
[1727126357832,0.079148,63169.0,63168.0,0.01]
[1727126359137,0.259147,63170.0,63168.0,0.01]
[1727126359729,0.079147,63170.0,63168.0,0.01]
[1727126360432,0.079148,63169.0,63168.0,0.01]
[1727126360835,0.079148,63169.0,63168.0,0.3708]
[1727126363340,0.07932066,63169.0,63168.0,0.3708]
[1727126363636,0.079148,63169.0,63168.0,0.3708]
[1727126364631,0.079148,63169.0,63168.0,0.01]
[1727126368542,0.079152,63166.0,63161.0,0.3608]
[1727126368845,0.07916,63160.0,63159.0,0.06315181]
[1727126371835,0.09466097,63160.0,63159.0,0.06315181]
[1727126373345,0.079167,63154.0,63153.0,0.909168]
[1727126373548,0.07933966,63154.0,63153.0,0.909168]
[1727126374055,0.079167,63154.0,63153.0,0.909168]
[1727126374449,0.079167,63154.0,63153.0,0.83]
[1727126375047,0.079162,63159.0,63153.0,0.83]
[1727126375243,0.1732693,63160.0,63153.0,0.909168]
[1727126375449,0.079167,63155.0,63153.0,0.83]
[1727126376257,0.079167,63154.0,63153.0,0.83]
[1727126376451,0.09466097,63160.0,63153.0,0.83]
[1727126376452,0.079162,63158.0,63153.0,0.83]
[1727126376757,0.079166,63155.0,63153.0,0.83]
[1727126377052,0.079166,63155.0,63148.0,0.0037]
[1727126377053,0.079172,63150.0,63148.0,0.0037]
[1727126377254,0.079175,63148.0,63147.0,0.3608]
[1727126380143,0.3608,63155.0,63147.0,0.3608]
[1727126380339,0.3608,63155.0,63147.0,0.439976]
[1727126380340,0.07917,63152.0,63147.0,0.439976]
[1727126381152,0.07917,63152.0,63148.0,0.047494]
[1727126381556,0.079171,63151.0,63148.0,0.047494]
[1727126383050,0.439967,63155.0,63149.0,0.079173]
[1727126383250,0.439967,63155.0,63150.0,0.079171]
[1727126383451,0.3608,63155.0,63150.0,0.079171]
[1727126384565,0.079169,63153.0,63150.0,0.079171]
[1727126385257,0.07931324,63152.0,63150.0,0.079171]
[1727126385451,0.07917,63152.0,63150.0,0.079171]
[1727126385648,0.00017266,63151.0,63150.0,0.079171]
[1727126385849,0.00016983,63151.0,63150.0,0.079171]
[1727126386162,0.07917,63152.0,63147.0,0.3608]
[1727126386854,0.079175,63149.0,63147.0,0.3608]
[1727126387055,0.07917,63152.0,63147.0,0.3608]
[1727126387258,0.07917,63152.0,63148.0,0.079175]
[1727126387552,0.07917,63152.0,63147.0,0.3608]
[1727126387553,0.079175,63148.0,63147.0,0.3608]
[1727126387760,0.07934766,63148.0,63147.0,0.3608]
[1727126388065,0.079175,63148.0,63147.0,0.3608]
[1727126390457,0.3608,63155.0,63147.0,1.61588]
[1727126390655,0.3608,63155.0,63148.0,0.0472]
[1727126390656,0.439966,63155.0,63148.0,0.0472]
[1727126390963,0.079169,63153.0,63149.0,0.83]
[1727126392158,0.079169,63153.0,63151.0,0.079171]
[1727126392870,0.3608,63155.0,63152.0,0.07917]
[1727126393454,0.0037,63160.0,63153.0,0.3608]
[1727126393759,0.1837,63165.0,63156.0,0.079165]
[1727126393960,0.07916,63160.0,63156.0,0.079165]
[1727126394360,0.07916,63160.0,63156.0,0.14230329]
[1727126394664,0.07930802,63159.0,63156.0,0.14230329]
[1727126394867,0.079161,63159.0,63156.0,0.14230329]
[1727126395466,0.079163,63157.0,63155.0,0.06313829]
[1727126395655,0.079163,63157.0,63156.0,0.06313829]
[1727126396468,0.079163,63157.0,63155.0,0.06313829]
[1727126396869,0.079163,63157.0,63156.0,0.06313829]
[1727126398871,0.07932447,63157.0,63156.0,0.06313829]
[1727126399073,0.079157,63162.0,63156.0,0.06313829]
[1727126399373,0.07916,63160.0,63159.0,0.04746158]
[1727126400379,0.25929179,63160.0,63159.0,0.04746158]
[1727126400561,0.25929179,63160.0,63158.0,0.04746158]
[1727126400562,0.079161,63159.0,63158.0,0.04746158]
[1727126400768,0.079161,63159.0,63158.0,0.04746043]
[1727126400972,0.079162,63158.0,63155.0,0.06313829]
[1727126401469,0.079164,63157.0,63155.0,0.06313829]